Cogmind - Beta 14 @@@ ROGUE MODE // 2024.10.11 @ 20:07:30 Player: Lenbot7 Result: Destroyed by PS-FIV(R) with Subdweller Beam Cannon Performance ------------- Evolutions (0) 0 Regions Visited (3) 600 Robots Destroyed (13) 65 Value Destroyed (209) 209 Prototype IDs (0) 0 Alien Tech Used (0) 0 Bonus (0) 0 TOTAL SCORE: 874 Bonus ------- None Cogmind --------- Core Integrity 0/250 Matter 285/300 Energy 84/100 System Corruption 2% Temperature Cool (9) Movement Core (50) Location -10/Subcaves Parts ------- > --- POWER (1) -------- (None) > --- PROPULSION (2) --- (None) > --- UTILITY (2) ------ Terrain Scan Processor > --- WEAPON (2) ------- Light Cannon > --- INVENTORY (5) ---- (None) Peak State ------------ > --- POWER ------------ Ion Engine > --- PROPULSION ------- Aluminum Leg Aluminum Leg > --- UTILITY ---------- Terrain Scan Processor Authchip [R/Combat] > --- WEAPON ----------- Small Laser Beam Cannon > --- INVENTORY -------- Light Ion Engine Compact Wheel Compact Wheel Small Laser Light Cannon [Rating: 11] Favorites ----------- Power Ion Engine Engine Ion Engine Propulsion Aluminum Leg Leg Aluminum Leg Wheel Compact Wheel Flight Unit Flight Unit Utility Terrain Scan Processor Device Improved Terrain Scanner Storage Small Storage Unit Processor Terrain Scan Processor Hackware Authchip [R/Combat] Weapon Small Laser Energy Gun Small Laser Energy Cannon Beam Cannon Ballistic Cannon Light Cannon Special Weapon Mining Laser Build | -11 -10 -10 -10 ------- Run | Yrd Mat Min Sub Slots Evolved . | . . . . Power . | . . . . Propulsion . | . . . . Utility . | . . . . Weapon . | . . . . Parts Attached 13 | . 6 4 3 Power . | . . . . Engine . | . . . . Core . | . . . . Reactor . | . . . . Propulsion 2 | . . 1 1 Treads . | . . . . Leg . | . . . . Wheel 1 | . . . 1 Hover . | . . . . Flight 1 | . . 1 . Utility 3 | . 1 2 . Device 1 | . . 1 . Storage . | . . . . Processor 1 | . 1 . . Hackware 1 | . . 1 . Protection . | . . . . Artifact . | . . . . Weapon 8 | . 5 1 2 Energy Gun 2 | . 1 . 1 Energy Cannon 1 | . 1 . . Ballistic Gun . | . . . . Ballistic Cannon 3 | . 2 . 1 Launcher . | . . . . Special Weapon 2 | . 1 1 . Impact Weapon . | . . . . Slashing Weapon . | . . . . Piercing Weapon . | . . . . Special Melee Weapon . | . . . . Unidentified Prototypes . | . . . . Parts Lost 7 | . 1 1 5 Power 1 | . . . 1 Propulsion 1 | . . . 1 Utility 1 | . . . 1 Weapon 4 | . 1 1 2 Highest Loss Streak 5 | . 1 1 5 To Critical Strikes . | . . . . Average Slot Usage (%) 84 | . 82 86 73 Engine 13 | . 14 14 9 Leg 17 | . 28 15 . Flight 4 | . . 6 . Device 7 | . . 9 14 Processor 13 | . 10 14 14 Hackware 3 | . . 4 . Energy Gun 12 | . 6 14 23 Energy Cannon 4 | . 5 5 . Ballistic Cannon 2 | . 10 . . Special Weapon 2 | . 3 2 . Peak Build Rating 11 | 6 8 11 9 Average Rating 8 | 6 6 9 8 On Entrance 6 | 6 6 7 8 Naked Turns . | . . . . Heaviest Build 16 | 13 16 10 8 Greatest Support 20 | 20 20 20 16 Greatest Overweight (x) 1 | . . 1 . Average Overweight (x) . | . . . . Largest Inventory Capacity 8 | 8 8 5 5 Average Capacity 5 | 8 5 5 5 Most Carried 8 | 6 8 5 3 Average Carried 4 | 6 5 4 1 Final Capacity 8 | 8 5 5 5 Final Carried 6 | 6 5 3 . Class Distribution -------------------- 54% | Mutant 45% | Scavenger-Mutant Dominant Class ---------------- Mutant | -10/Materials Scavenger-Mutant | -10/Mines Mutant | -10/Subcaves Resources | -11 -10 -10 -10 ----------- Run | Yrd Mat Min Sub Matter Collected 376 | 200 125 51 . Remotely . | . . . . Salvage Created 345 | 87 166 92 . Parts 27 | 3 12 12 . Haulers Intercepted . | . . . . Recyclers Shooed . | . . . . Parts Field Recycled . | . . . . Retrieved Matter . | . . . . Parts Self-Destructed . | . . . . Prevented . | . . . . Kills | -11 -10 -10 -10 ------- Run | Yrd Mat Min Sub Combat Hostiles Destroyed 7 | . 4 3 . Guns 3 | . . 3 . Cannons 4 | . 4 . . Classes Destroyed 6 | 2 2 2 . Worker 1 | . . 1 . Builder 1 | . 1 . . Tunneler 3 | 1 1 1 . Recycler 1 | 1 . . . Swarmer 3 | . . 3 . Grunt 4 | . 4 . . Best Kill Streak 4 | 2 2 4 . Combat Bots Only 2 | . 2 2 . Max Kills in Single Turn 1 | 1 1 1 . Gunslinging . | . . . . Exploded . | . . . . Melee . | . . . . Uniques/NPCs Destroyed . | . . . . Combat | -11 -10 -10 -10 -------- Run | Yrd Mat Min Sub Hostile Shots Fired 67 | . 18 33 16 Missed 23 | . 6 15 2 Damage Taken 779 | . 132 301 346 Core 273 | . 21 105 147 Absorbed by Shields . | . . . . Core Remaining (%) 100 | 100 . . . Volleys Fired 54 | 4 27 19 4 Largest 2 | 2 2 2 2 Hottest 140 | 80 135 140 80 Shots Fired 75 | 8 39 22 6 Gun 36 | 8 3 19 6 Cannon 34 | . 33 1 . Launcher . | . . . . Special 5 | . 3 2 . Kinetic 18 | . 18 . . Thermal 53 | 4 21 22 6 Explosive . | . . . . Electromagnetic 4 | 4 . . . Robot Hit Streak 7 | 3 7 2 4 Robot Miss Streak 4 | 1 4 4 1 Penetration Max . | . . . . Secondary Targets . | . . . . Shots Hit Robots 38 | 5 23 6 4 Core Hits 18 | 3 7 7 1 Critical Kills . | . . . . Critical Parts Destroyed . | . . . . Critical Strikes 1 | . 1 . . Blast 1 | . 1 . . Melee Attacks . | . . . . Impact . | . . . . Slashing . | . . . . Piercing . | . . . . Sneak Attacks . | . . . . Combat Hostiles . | . . . . Follow-up Attacks . | . . . . Damage Inflicted 566 | 62 365 96 43 Guns 180 | 62 . 75 43 Cannons 365 | . 365 . . Explosions . | . . . . Melee . | . . . . Ramming 21 | . . 21 . Kinetic 175 | . 175 . . Thermal 330 | 22 190 75 43 Explosive . | . . . . Electromagnetic 40 | 40 . . . Impact . | . . . . Slashing . | . . . . Piercing . | . . . . Highest Corruption 2 | . . 2 2 Average Corruption 2 | . . 2 2 Corruption Purged . | . . . . Corruption Blocked . | . . . . Effects 11 | . . 10 1 Message Errors 2 | . . 2 . Matter Fused 4 | . . 3 1 Energy Discharges 2 | . . 2 . Data Loss (minor) 2 | . . 2 . Alerts 1 | . . 1 . Overload Shots . | . . . . Overflow Damage 11 | . 11 . . Projectiles 11 | . 11 . . Explosions . | . . . . Melee . | . . . . Knockbacks 4 | . 4 . . Impact . | . . . . Kinetic 3 | . 3 . . Secondary 1 | . 1 . . Self-Inflicted Damage 70 | . . 70 . Shots 1 | . . 1 . Rammed . | . . . . Targets Rammed 9 | . . 9 . Kicked 9 | . . 9 . Crushed . | . . . . Highest Temperature 244 | 72 132 40 244 Average Temperature 52 | 40 57 30 134 Received Heat Transfer 404 | . 72 . 332 Siege Activations . | . . . . Robots Corrupted . | . . . . Combat Hostiles . | . . . . Parts Fried . | . . . . Impact Corruptions . | . . . . Robots Melted . | . . . . Combat Hostiles . | . . . . Parts Melted 3 | . 3 . . Heat Transferred 732 | 50 407 175 100 Parts Sabotaged . | . . . . Parts Stolen . | . . . . Parts Stripped . | . . . . Power Chain Reactions . | . . . . Alert | -11 -10 -10 -10 ------- Run | Yrd Mat Min Sub Peak Influence 209 | 10 209 99 . Initial 81 | . 6 81 . Average 76 | 4 92 74 . Maximum Alert Level 1 | . 1 . . Low Security (%) 98 | 100 93 100 . Level 1 1 | . 6 . . Level 2 . | . . . . Level 3 . | . . . . Level 4 . | . . . . Level 5 . | . . . . High Security . | . . . . Max Security . | . . . . Squads Dispatched 2 | . 2 . . Investigation 2 | . 2 . . Extermination . | . . . . Reinforcement . | . . . . Assault . | . . . . Garrison . | . . . . Intercept . | . . . . Searches Triggered . | . . . . Construction Impeded . | . . . . Haulers Reinforced . | . . . . Active Scanning Responses . | . . . . Cargo Convoy Interrupts . | . . . . Stealth | -11 -10 -10 -10 --------- Run | Yrd Mat Min Sub Distress Signals . | . . . . Communications Jammed . | . . . . Distress Signals . | . . . . Times Spotted 15 | . 10 3 2 Peak Tracking Total 6 | . 6 3 2 Tactical Retreats 1 | . 1 . . Traps | -11 -10 -10 -10 ------- Run | Yrd Mat Min Sub Traps Triggered 2 | . . 2 . Indirectly 1 | . . 1 . Trap Hack Attempts . | . . . . Triggered . | . . . . Disarmed . | . . . . Reprogrammed . | . . . . Reused . | . . . . Traps Extracted . | . . . . Installed . | . . . . Triggered . | . . . . Machines | -11 -10 -10 -10 ---------- Run | Yrd Mat Min Sub Machines Disabled 1 | . 1 . . Max in Single Turn 1 | . 1 . . Machines Repaired . | . . . . Machines Dismantled . | . . . . Machines Sabotaged . | . . . . Overloaded Fab Kills . | . . . . Hacking | -11 -10 -10 -10 --------- Run | Yrd Mat Min Sub Machines Accessed 2 | . 2 . . Terminals 2 | . 2 . . Fabricators . | . . . . Repair Stations . | . . . . Recycling Units . | . . . . Scanalyzers . | . . . . Garrison Access . | . . . . Total Hacks 11 | . 11 . . Successful 6 | . 6 . . Failed 5 | . 5 . . Catastrophic 1 | . 1 . . Database Lockouts . | . . . . Manual . | . . . . Terminals 11 | . 11 . . Fabricators . | . . . . Repair Stations . | . . . . Recycling Units . | . . . . Scanalyzers . | . . . . Garrison Access . | . . . . Terminal Hacks 6 | . 6 . . Record 3 | . 3 . . Repair Station Index 1 | . 1 . . Alert Level 1 | . 1 . . Dispatch Records 1 | . 1 . . Fabricator Hacks . | . . . . Repair Station Hacks . | . . . . Recycling Unit Hacks . | . . . . Scanalyzer . | . . . . Garrison Access Hacks . | . . . . Unauthorized Hacks . | . . . . Terminals . | . . . . Fabricators . | . . . . Repair Stations . | . . . . Recycling Units . | . . . . Scanalyzers . | . . . . Garrison Access . | . . . . Data Cores Recovered . | . . . . Used . | . . . . Hacking Detections 2 | . 2 . . Full Trace Events 2 | . 2 . . Feedback Events . | . . . . Feedback Blocked . | . . . . Robot Schematics Acquired . | . . . . Robots Built . | . . . . Authchips . | . . . . Time . | . . . . Total Robot Build Rating . | . . . . Part Schematics Acquired . | . . . . Parts Built . | . . . . Authchips . | . . . . Time . | . . . . Total Part Build Rating . | . . . . Parts Repaired . | . . . . Time . | . . . . Parts Recycled . | . . . . Recycled Matter . | . . . . Retrieved Matter . | . . . . Retrieved Components . | . . . . Parts Scanalyzed . | . . . . Part Schematics Acquired . | . . . . Parts Damaged . | . . . . Bothacking | -11 -10 -10 -10 ------------ Run | Yrd Mat Min Sub Used RIF Installer . | . . . . Robots Hacked . | . . . . Non-combat . | . . . . Combat . | . . . . Robot Hacks Applied . | . . . . Relay Couplers Released . | . . . . Fabnet Peak Effective % . | . . . . Robots Rewired . | . . . . Allies Hacked . | . . . . Hacks Repelled . | . . . . Allies | -11 -10 -10 -10 -------- Run | Yrd Mat Min Sub Total Allies . | . . . . Largest Group . | . . . . Highest-Rated Group . | . . . . Highest-Rated Ally . | . . . . Total Orders . | . . . . Ally Attacks . | . . . . Total Damage . | . . . . Kills . | . . . . Allies Corrupted . | . . . . Allies Melted . | . . . . Intel | -11 -10 -10 -10 ------- Run | Yrd Mat Min Sub Robot Analysis Total . | . . . . Derelict Logs Recovered 2 | . . 2 . Drone Launches . | . . . . Drone Recoveries . | . . . . Exploration | -11 -10 -10 -10 ------------- Run | Yrd Mat Min Sub Turns Passed 1131 | 15 231 826 59 Spaces Moved 790 | 3 121 618 48 Core 6 | . . . 6 Treads . | . . . . Legs 429 | 3 121 305 . Wheels 42 | . . . 42 Hover . | . . . . Flight 313 | . . 313 . Fastest Speed 50 | 120 120 120 50 Average Speed 118 | 120 120 120 93 Slowest Speed 120 | 120 120 120 100 Overloaded Moves . | . . . . Propulsion Burnouts . | . . . . Robots Hopped . | . . . . Cave-ins Triggered . | . . . . Exploration Rate (%) 28 | 3 25 83 4 Regions Visited 3 Branch Regions 2 Pre-discovered Areas 1 | . . 1 . Known Exits Taken . | . . . . Unknown Exits Taken 3 | 1 1 1 . Scrap Searched 1 | . . 1 . Spaces Dug 1 | . 1 . . Terrain Destroyed 16 | . 2 14 . Melee . | . . . . Projectile 4 | . 2 2 . AOE 12 | . . 12 . Terrain Rammed . | . . . . Walls Destroyed . | . . . . Machines Disabled . | . . . . Actions | -11 -10 -10 -10 --------- Run | Yrd Mat Min Sub Total 897 | 6 161 674 56 Wait 22 | . . 22 . Move 787 | 2 120 617 48 Hop . | . . . . Pick Up 3 | . 3 . . Fast Attach 4 | . 3 1 . Attach 3 | . . . 3 Detach . | . . . . Swap 6 | . 3 3 . Drop 9 | . 5 3 1 Fire 54 | 4 27 19 4 Melee . | . . . . Ram . | . . . . Kick 9 | . . 9 . Crush . | . . . . Escape Stasis . | . . . . Rewire . | . . . . Trap . | . . . . Miscellaneous . | . . . . Route ------- -11/Scrapyard -10/Materials -10/Mines -10/Subcaves History --------- Turn | Location | Event 1 | -11/Scrapyard | Discovered new exit (range 3) 16 | -11/Scrapyard | Entered Materials 116 | -10/Materials | Discovered new exit (range 10) 247 | -10/Materials | Entered Mines 257 | -10/Mines | Met a Derelict bent on vengeance 317 | -10/Mines | Build established: Mutant 533 | -10/Mines | Learned Materials interactive machine intel 685 | -10/Mines | Core integrity fell below 50% 998 | -10/Mines | Build established: Scavenger-Mutant 1053 | -10/Mines | Discovered new exit (range 8) 1073 | -10/Mines | Entered Subcaves 1125 | -10/Subcaves | Core integrity fell below 20% 1132 | -10/Subcaves | Destroyed by PS-FIV(R) with Subdweller Beam Cannon Last Messages --------------- Extracted 5 matter. System corrupted: IFF burst signal emitted. System corrupted: Component data lost. System corrupted: Matter fused (-7). Acquired 7 matter. System corrupted: Matter fused (-6). DBUSZ COQAFDUVJNVJ T0|J D Acquired 2 matter. EXIT=FOUND LOCATION=UNKNOWN AMBIENT_HEAT=-10 GOAL=ESCAPE Dropped Flight Unit. System corrupted: Matter fused (-6). Ion Engine destroyed. Sml. Laser destroyed. Critical hit (Meltdown: +260). Com. Wheel destroyed. Sml. Laser destroyed. Imp. Terrain Scanner destroyed. Map ----- +----------------------------------------------------+ | | | | | | | | | | | | | ?????????????????????????????????????????????????? | | ?????????????????????????????????????????????????? | | ????????????????????????????????????#????????????? | | ??????????????????????????????????#???#??????????? | | ?????????????????????????????????????????????????? | | ???????????????????????#?????????????????#???????? | | ???????????????????????????#????#??#?????????????? | | ?????????????????????????????##???????#????????#?? | | ????????????????????????#???????#????????????????? | | ??????????????????????????##????#???#??#??#??????? | | ?????????????????#???????????#??????#?????#?#????# | | ?????????????????#????????#??#???##??#?????#?????? | | ??????????????#???????????????#????????????#????#? | | ??????????????#????#?????#?###?##??##???#????#?#?? | | ???????????##?##?##????????###??####???#####?????? | | ???????????????????#?##????# ###?????### #?#? ?? | | ????????????????#?#?######## ##?#??### ##???? ? | | ?????????????????##?## ##????## ##?#?? ? | | ?????????????????#### #?#??# ####???? | | ??????????????#????######@ ##??## ## ##? ? | | ????????????????#?####### ####?##### = ##???? | | ?????????????????## ####### ##???#? | | ??????##????????## ## ## # ## ###?#??# | | ????????????## ## ### #?#??#?? | | ???????????## ### ##?#???? | | ??????#????# #?# # # ### #?##???? | | ???????????# ###?#########?####??? ?? | | ??????????##### ##??????#?##?#??????????? | | ??????????#?#?# #####?#??##??#??????##????? | | ??????????##??# R##?????????###??###????????? | | ??????##??????# R##????????##??#????????#????? | | ??????????????# ??#?#??????#???#????#???????? | | ?????????????## ????#???#?#???#????#?#????"?? | | ?????????????# ?????###????#????#?#???????? | | ????????#?#??# ????####?????#?#???????#????? | | ?????????????# ??#????#????#??????#??#?????? | | ?????????????#### ?##????????#??????#????????? | | ????????????????# ??#????#???????????#????????? | | ??????????????#?# ??????????????????#????#?????? | | ???????????????? ?##??##??????????????????????? | | ????????????????? #?????????????????????????????? | | ?????????????????????????????????????????????????? | | ?????????????????????????????????????????????????? | | ?????????????????????????????????????????????????? | +----------------------------------------------------+ Best States ------------- Heat Dissipation 25 Energy Generation 10 Energy Capacity 250 Matter Stores 300 Matter Capacity 300 Sight Range 16 Terrain Scan Range 16 Terrain Scan Density 85 Evasion (%) 55 Authchip Count 1 Item Schematics ----------------- None Robot Schematics ------------------ None Fabricated ------------ Nothing Alien Tech Used ----------------- None Achievements -------------- None Challenges ------------ None Game ------ Seed HardenedAntimissileNanovents Manual? 0 Play Time 00:13:45 Cumulative 3.3 hours Start 2024.10.11 @ 19:54:16 End 2024.10.11 @ 20:07:30 Sessions 1 Manual Loads 0 Difficulty Rogue Special Mode None Game No. 14 Rogue 14 Adventurer 0 Explorer 0 Win Type - Total 0 Types 0/0/0/0/0/0/0/0/0 Lore% 2 Gallery% 7 Achievement% 8 Wizard Run 0 Options --------- Layout 1 ASCII 0 Keyboard 0 Movement Mouse Keybinds 0 Fullscreen 1 Font 24/Smallcaps Map View 50x35 Zoom Use 0% Tactical HUD 0 Map Filters NONE Filters NONE Steam 1 RUN: 69b3832f-2627-415f-ad42-a1a301c529d3